fUSD/lending_fUSD_20260322
["ID","MTS","AMOUNT","RATE_DAILY","PERIOD"]
[408769719,1774207844809,-366.194661,0.00013426,2]
[408769720,1774207844818,-166.5295,0.000135,2]
[408769721,1774207844827,-1000.0,0.000135,2]
[408769722,1774207844837,-9634.75375412,0.0001351,2]
[408769723,1774207844846,-7597.49816672,0.0001352,2]
[408769724,1774207844855,-1600.0,0.00013534,2]
[408769725,1774207844865,-2000.0,0.00013674,2]
[408769726,1774207844874,-500.0,0.00013698,2]
[408769727,1774207844883,-500.0,0.00013698,2]
[408769728,1774207844892,-275.04924255,0.00013698,2]
[408769729,1774207844902,-950.12,0.00013699,2]
[408769730,1774207844912,-200.0,0.00013699,2]
[408769731,1774207844921,-9746.53,0.00013699,2]
[408769732,1774207844931,-2084.27,0.000137,2]
[408769733,1774207844940,-1732.12,0.000137,2]
[408769734,1774207844949,-303.860838,0.0001371,7]
[408769735,1774207844958,-353.974343,0.0001371,7]
[408769736,1774207844968,-448.571634,0.0001371,7]
[408769737,1774207844977,-166.66,0.00013714,2]
[408769738,1774207844986,-736.0,0.00013768,2]
[408769739,1774207844995,-823.0,0.00013824,2]
[408769740,1774207845004,-168.11,0.00013835,2]
[408769741,1774207845013,-3292.0,0.00013841,2]
[408769742,1774207845023,-132629.92699492,0.0001399,2]
[408769743,1774207845032,-501.0,0.00014,2]
[408769744,1774207845041,-264.583506,0.00014096,7]
[408769745,1774207845050,-617.0512079,0.00014104,2]
[408769746,1774207845059,-7597.49816672,0.00014115,2]
[408769747,1774207845069,-6068.3113756,0.00014153,2]
[408769748,1774207845078,-223.0,0.00014246,3]
[408769749,1774207845088,-174.24,0.00014349,2]
[408769750,1774207845098,-166.64,0.00014367,2]
[408769751,1774207845107,-950.12,0.00014384,2]
[408769752,1774207845116,-293.02464174,0.00014677,2]
[408769753,1774207845125,-7597.49816672,0.0001471,2]
[408769754,1774207845135,-501.0,0.00014815,2]
[408769755,1774207845144,-1600.0,0.00014888,2]
[408769756,1774207845154,-175.4653,0.000149,2]
[408769757,1774207845164,-2000.0,0.00014917,2]
[408769758,1774207845173,-500.0,0.00014932,2]
[408769759,1774207845182,-2084.27,0.00015,2]
[408769760,1774207845191,-1732.12,0.00015,2]
[408769761,1774207845200,-300.0,0.00015,2]
[408769762,1774207845209,-500.0,0.00015,2]
[408769763,1774207845218,-500.0,0.00015,2]
[408769764,1774207845230,-500.0,0.00015,2]
[408769765,1774207845239,-500.0,0.00015,2]
[408769766,1774207845247,-500.0,0.00015,2]
[408769767,1774207845256,-501.2901347,0.00015,2]
[408769768,1774207845265,-500.0,0.00015,2]
[408769769,1774207845274,-500.0,0.00015,2]
[408769770,1774207845283,-500.0,0.00015,2]
[408769771,1774207845292,-500.0,0.00015,2]
[408769772,1774207845302,-500.0,0.00015,2]
[408769773,1774207845312,-2063.71846388,0.00015,2]
[408769774,1774207845321,-2428.27013508,0.00015,14]
[408769775,1774207845330,-8034.12425603,0.00015,2]
[408769776,1774207845339,-500.0,0.00015,2]
[408769777,1774207845348,-493.69575205,0.00015,2]
[408769778,1774207845358,-500.0,0.00015,2]
[408769779,1774207845367,-505.422077,0.00015,7]
[408769780,1774207845376,-160.0,0.00015068,2]
[408769781,1774207845385,-950.12,0.00015068,2]
[408769782,1774207845394,-337.51,0.00015068,2]
[408769783,1774207845403,-1252.0,0.0001511,2]
[408769784,1774207845412,-1152.0,0.00015201,2]
[408769785,1774207845421,-10000.0,0.00015205,2]
[408769786,1774207845430,-4609.0,0.00015225,2]
[408769787,1774207845439,-7326.4856062,0.00015305,2]
[408769799,1774207847433,-90.31543055,0.00015305,2]
[408769800,1774207847811,-2500.0,0.000105,2]
[408769801,1774207847821,-180.69712997,0.00015305,2]
[408769802,1774207847830,-499.99,0.0001531,2]
[408769803,1774207847840,-2887.49,0.0001531,2]
[408769804,1774207847849,-150.99,0.0001531,2]
[408769805,1774207847859,-265.51245262,0.00015347,2]
[408769806,1774207847868,-223.0,0.0001543,3]
[408769807,1774207847878,-2001.41322195,0.000155,3]
[408769808,1774207847887,-1998.0,0.00015507,5]
[408769809,1774207847897,-292.90719546,0.00015507,2]
[408769810,1774207847937,-3707.09280454,0.00015507,2]
[408769811,1774207847947,-203.060905,0.00015547,2]
[408769812,1774207847959,-174.24,0.00015553,2]
[408769813,1774207847969,-350.0,0.00015556,2]
[408769814,1774207847978,-399.68,0.00015564,2]
[408769815,1774207847987,-166.64,0.00015589,2]
[408769816,1774207847997,-500.0,0.00015616,2]
[408769817,1774207848006,-153.80839704,0.00015621,2]
[408769818,1774207848016,-501.0,0.0001563,3]
[408769819,1774207848025,-1586.2600759,0.00015634,2]
[408769820,1774207848035,-196.29907607,0.00015664,2]
[408769821,1774207848049,-151.0,0.00015664,2]
[408769822,1774207848058,-2876.84633566,0.000157,5]
[408769823,1774207848071,-2823.15366434,0.000157,5]
[408769824,1774207848080,-350.0,0.0001571,2]
[408769825,1774207848089,-244.79633566,0.00015718,2]
[408769826,1774207848101,-206.20366434,0.00015718,2]
[408769827,1774207848111,-399.68,0.0001573,2]
[408769828,1774207848121,-150.0,0.00015731,2]
[408769829,1774207848131,-451.0,0.00015753,2]
[408769830,1774207848141,-138.11797039,0.00015753,2]
[408769831,1774207848333,-676.87939562,0.00015753,2]
[408769832,1774207848355,-135.12263399,0.00015753,2]
[408769833,1774207848364,-183.448026,0.00015767,7]
[408769834,1774207848373,-350.0,0.00015779,2]
[408769835,1774207848383,-500.0,0.00015799,2]
[408769836,1774207848392,-451.0,0.00015799,2]
[408769837,1774207848401,-549.99579937,0.000158,2]
[408769838,1774207848412,-685.08420063,0.000158,2]
[408769839,1774207848421,-571.82945458,0.000158,5]
[408769840,1774207848432,-6628.17054542,0.000158,5]
[408769841,1774207848442,-451.0,0.0001581,2]
[408769842,1774207848451,-500.0,0.0001582,2]
[408769843,1774207848460,-500.0,0.00015839,2]
[408769844,1774207848470,-500.0,0.00015839,2]
[408769845,1774207848479,-1629.51,0.00015862,2]
[408769846,1774207848488,-451.0,0.00015866,2]
[408769847,1774207848497,-451.0,0.00015868,2]
[408769848,1774207848506,-451.0,0.00015868,2]
[408769849,1774207848515,-451.0,0.0001587,2]
[408769850,1774207848524,-451.0,0.00015882,2]
[408769851,1774207848534,-451.0,0.00015887,2]
[408769852,1774207848543,-451.0,0.00015889,2]
[408769853,1774207848552,-2000.0,0.0001589,2]
[408769854,1774207848561,-4000.0,0.00015895,2]
[408769855,1774207848571,-10000.0,0.000159,2]
[408769856,1774207848580,-1400.0,0.000159,5]
[408769857,1774207848590,-7597.49816672,0.000159,2]
[408769858,1774207848599,-40976.14719327,0.000159,2]
[408769859,1774207848608,-463.82646979,0.000159,2]
[408769860,1774207848617,-30316.41077972,0.000159,2]
[408769861,1774207848627,-617.04353226,0.000159,2]
[408769862,1774207848636,-7909.19323623,0.000159,2]
[408769863,1774207848645,-243.3173423,0.000159,2]
[408769864,1774207848655,-451.0,0.00015903,2]
[408769865,1774207848664,-451.0,0.00015913,2]
[408769866,1774207848674,-451.0,0.0001592,2]
[408769867,1774207848683,-451.0,0.00015924,2]
[408769868,1774207848692,-451.0,0.00015926,2]
[408769869,1774207848702,-451.0,0.00015927,2]
[408769870,1774207848711,-3625.57747866,0.0001596,2]
[408769871,1774207848720,-451.0,0.00015962,2]
[408769872,1774207848728,-451.0,0.0001597,2]
[408769873,1774207848737,-347.94216551,0.00015973,2]
[408769874,1774207848746,-500.0,0.00015973,2]
[408769875,1774207848755,-500.83663151,0.00015973,2]
[408769876,1774207848764,-500.0,0.00015973,2]
[408769877,1774207848773,-500.0,0.00015973,2]
[408769878,1774207848783,-500.0,0.00015973,2]
[408769879,1774207848792,-249.95525671,0.00015973,2]
[408769880,1774207848802,-500.0,0.00015973,2]
[408769881,1774207848811,-500.0,0.00015973,2]
[408769882,1774207848821,-500.0,0.00015973,2]
[408769883,1774207848830,-500.0,0.00015973,2]
[408769884,1774207848839,-500.0,0.00015973,2]
[408769885,1774207848848,-500.0,0.00015973,2]
[408769886,1774207848858,-500.44177829,0.00015973,2]
[408769887,1774207848867,-500.0,0.00015973,2]
[408769888,1774207848877,-500.0,0.00015973,2]
[408769889,1774207848887,-500.0,0.00015973,2]
[408769890,1774207848897,-500.0,0.00015973,2]
[408769891,1774207848907,-500.0,0.00015973,2]
[408769892,1774207848916,-390.12270077,0.00015973,2]
[408769893,1774207848926,-500.0,0.00015973,2]
[408769894,1774207848935,-500.55967201,0.00015973,2]
[408769895,1774207848944,-25000.0,0.00015982,3]
[408769896,1774207848954,-500.0,0.0001599,2]
[408769897,1774207848963,-500.0,0.0001599,2]
[408769898,1774207848973,-846.51033605,0.0001599,2]
[408769899,1774207848983,-846.51033605,0.0001599,2]
[408769900,1774207848992,-846.51033605,0.0001599,2]
[408769901,1774207849001,-1000.0,0.00015991,2]
[408769902,1774207849010,-1000.0,0.00015991,2]
[408769903,1774207849018,-1000.0,0.00015991,2]
[408769904,1774207849027,-1000.0,0.00015991,2]
[408769905,1774207849036,-1000.0,0.00015991,2]
[408769906,1774207849045,-1000.0,0.00015991,2]
[408769907,1774207849055,-1000.0,0.00015991,2]
[408769908,1774207849063,-1000.0,0.00015991,2]
[408769909,1774207849072,-1000.0,0.00015991,2]
[408769910,1774207849081,-1000.0,0.00015991,2]
[408769911,1774207849090,-1000.0,0.00015991,2]
[408769912,1774207849099,-1000.0,0.00015991,2]
[408769913,1774207849108,-194.445,0.00015991,2]
[408769914,1774207849117,-203.060905,0.00015997,2]
[408769915,1774207849125,-500.0,0.00015998,2]
[408769916,1774207849135,-666.0,0.00015999,2]
[408769917,1774207849144,-666.0,0.00015999,2]
[408769918,1774207849153,-500.0,0.00015999,2]
[408769919,1774207849162,-500.0,0.00015999,2]
[408769920,1774207849172,-500.0,0.00015999,2]
[408769921,1774207849181,-500.0,0.00015999,2]
[408769922,1774207849191,-531.3420411,0.00015999,2]
[408769923,1774207849200,-500.0,0.00015999,2]
[408769924,1774207849208,-500.0,0.00015999,2]
[408769925,1774207849217,-500.0,0.00015999,2]
[408769926,1774207849229,-500.0,0.00015999,2]
[408769927,1774207849239,-500.0,0.00015999,2]
[408769928,1774207849248,-500.0,0.00015999,2]
[408769929,1774207849257,-500.0,0.00015999,2]
[408769930,1774207849267,-500.0,0.00015999,2]
[408769931,1774207849276,-500.0,0.00015999,2]
[408769932,1774207849286,-500.0,0.00015999,2]
[408769933,1774207849296,-374.6786993,0.00015999,2]
[408769939,1774208069164,1120.44,0.00017,60]
[408769954,1774209031900,-324.81122486,0.00010501,2]
[408769955,1774209031910,-250.0,0.00010502,2]
[408769956,1774209031920,-540.52758538,0.00010539,2]
[408769957,1774209031954,-22.91386623,0.00010539,2]
[408769958,1774209031963,-338.93969971,0.00010554,2]
[408769959,1774209031974,-438.96370803,0.00010554,2]
[408769960,1774209031983,-241.25047278,0.00010582,2]
[408769961,1774209031992,-284.82620945,0.00010812,2]
[408769962,1774209032001,-2236.32,0.00011507,2]
[408769963,1774209032011,-250.0,0.00011549,2]
[408769965,1774209032020,-1045.59810829,0.00011549,2]
[408769967,1774209032029,-195.0,0.00011549,2]
[408769969,1774209032038,-195.0,0.00011549,2]
[408769971,1774209032047,-274.8699727,0.00011549,2]
[408769973,1774209032056,-193.0,0.00011549,2]
[408769975,1774209032066,-317.73792915,0.00011599,2]
[408769977,1774209032078,-437.436765,0.00011599,2]
[408769979,1774209032089,-444.82530585,0.00011599,2]
[408769981,1774209032098,-80.97144456,0.000116,2]
[408769985,1774209032128,-69.02855544,0.000116,2]
[408769987,1774209032137,-280.02846397,0.00012524,2]
[408769991,1774209037871,-19.97153603,0.00012524,2]
[408769992,1774209037880,-945.62975138,0.00012525,2]
[408769993,1774209037892,-6230.99024862,0.00012525,2]
[408769994,1774209037902,-1680.0,0.00012759,2]
[408769995,1774209037911,-2277.55,0.00012887,2]
[408769996,1774209037921,-156.936,0.000129,2]
[408769997,1774209037931,-1852.42,0.00012965,2]
[408769998,1774209037940,-250.0,0.00013,2]
[408769999,1774209037951,-200.0,0.00013017,2]
[408770000,1774209037960,-979.16666667,0.00013109,2]
[408770001,1774209037969,-160.0,0.00013109,2]
[408770002,1774209037979,-174.19,0.00013355,2]
[408770003,1774209037988,-712.49,0.00013458,2]
[408770004,1774209037997,-179542.37445497,0.0001369,2]
[408770005,1774209038009,-15713.42564278,0.0001369,2]
[408770006,1774209038021,-888.5671607,0.0001369,2]
[408770007,1774209038036,-1020.29583807,0.0001369,2]
[408770008,1774209038056,-347.32,0.0001369,2]
[408770009,1774209038067,-58467.91055809,0.0001369,2]
[408770010,1774209038096,-400.93977782,0.0001369,2]
[408770022,1774209041738,-16339.72992309,0.0001369,2]
[408770023,1774209041749,-569.0,0.0001369,2]
[408770024,1774209041760,-2522.48116495,0.0001369,2]
[408770025,1774209041797,-150.0,0.00012914,2]
[408770026,1774209041806,-957.21258076,0.0001369,2]
[408770027,1774209041841,-513.28348177,0.0001369,2]
[408770028,1774209041853,-3412.8,0.0001369,2]
[408770035,1774209043021,-614.78227108,0.0001369,2]
[408770036,1774209043032,-218642.01544233,0.0001369,2]
[408770037,1774209043691,-690.17086125,0.0001369,2]
[408770104,1774209045753,-42334.54402154,0.0001369,2]
[408770105,1774209045808,-21116.00697478,0.0001369,2]
[408770106,1774209045863,-26359.91242195,0.0001369,2]
[408770107,1774209045874,-433.31109866,0.0001369,2]
[408770108,1774209045886,-786.86516475,0.0001369,2]
[408770109,1774209045920,-2866.39049419,0.0001369,2]
[408770130,1774210231954,-164.69,0.00010013,2]
[408770131,1774210231963,-250.0,0.00010952,2]
[408770132,1774210231973,-250.0,0.00011014,2]
[408770133,1774210231982,-181.51302202,0.00011014,2]
[408770134,1774210232008,-13.48697798,0.00011014,2]
[408770135,1774210232017,-195.0,0.00011177,2]
[408770136,1774210232026,-195.0,0.00011177,2]
[408770137,1774210232035,-195.0,0.00011177,2]
[408770138,1774210232045,-500.0,0.0001189,2]
[408770139,1774210232055,-166.66,0.00012014,2]
[408770140,1774210232065,-150.0,0.00012147,2]
[408770141,1774210232074,-166.66,0.00012267,2]
[408770142,1774210232083,-500.0,0.00012301,2]
[408770143,1774210232094,-199.28775099,0.00012384,2]
[408770144,1774210232105,-300.71224901,0.00012384,2]
[408770145,1774210232115,-200.72651587,0.0001242,2]
[408770146,1774210232124,-250.0,0.00012487,2]
[408770147,1774210232134,-1144.35049987,0.00012518,2]
[408770148,1774210232146,-455.64950013,0.00012518,2]
[408770149,1774210232155,-166.66,0.0001252,2]
[408770150,1774210232165,-500.0,0.0001255,2]
[408770152,1774210232174,-500.0,0.00012713,2]
[408770153,1774210232184,-166.66,0.00012773,2]
[408770155,1774210232193,-308.0,0.00012797,2]
[408770156,1774210232202,-166.66,0.00013026,2]
[408770157,1774210232211,-500.0,0.00013123,2]
[408770158,1774210232220,-166.66,0.00013279,2]
[408770159,1774210232230,-160.0,0.00013291,2]
[408770160,1774210232239,-160.0,0.00013304,2]
[408770161,1774210232248,-150.0,0.00013365,2]
[408770162,1774210232258,-150.0,0.00013415,14]
[408770163,1774210232267,-1200.0,0.00013427,2]
[408770164,1774210232278,-979.16666667,0.00013428,2]
[408770165,1774210232287,-150.0,0.0001344,2]
[408770166,1774210232295,-151.0,0.0001344,2]
[408770167,1774210232304,-5597.29624004,0.00013487,2]
[408770168,1774210232315,-401.62801935,0.00013487,2]
[408770169,1774210232333,-266.48064061,0.00013487,2]
[408770170,1774210232341,-68328.16000958,0.00013545,2]
[408770171,1774210232352,-13664.8,0.00013545,2]
[408770179,1774210238114,-1272.95559456,0.00013545,2]
[408770180,1774210238126,-1041.30749209,0.00013545,2]
[408770181,1774210238180,-429.34599351,0.00013545,2]
[408770182,1774210238191,-47192.34410924,0.00013545,2]
[408770202,1774210240494,-434.55543164,0.00013545,2]
[408770203,1774210240548,-31820.0791401,0.00013545,2]
[408770204,1774210240758,-42606.60035458,0.00013545,2]
[408770230,1774210243136,-477.34021707,0.00013545,2]
[408770231,1774210243148,-2722.93999999,0.00013545,2]
[408770232,1774210243191,-4799.5887045,0.00013545,2]
[408770233,1774210243298,-398.72022428,0.00013545,2]
[408770234,1774210243404,-44496.10146375,0.00013545,2]
[408770247,1774210247106,-500.0,0.00013545,2]
[408770248,1774210247144,-5312.86803179,0.00013545,2]
[408770254,1774211337204,10000.01,9.5e-05,3]
[408770255,1774211337227,10000.01,9.5e-05,3]
[408770256,1774211337250,10000.01,9.5e-05,3]
[408770257,1774211337274,10000.01,9.5e-05,3]
[408770258,1774211337297,10000.01,9.5e-05,3]
[408770259,1774211337319,10000.01,9.5e-05,3]
[408770260,1774211337341,10000.01,9.5e-05,3]
[408770261,1774211337364,10000.01,9.5e-05,3]
[408770262,1774211337386,10000.01,9.5e-05,3]
[408770263,1774211337409,10000.01,9.5e-05,3]
[408770264,1774211337437,15460.13663267,9.5e-05,3]
[408770272,1774211408141,154.0,9.5e-05,3]
[408770273,1774211408901,158.0,9.5e-05,3]
[408770274,1774211411064,232.0,9.5e-05,3]
[408770290,1774211432254,-5000.0,0.0001045,2]
[408770291,1774211432264,-232.0,0.00010684,3]
[408770292,1774211432274,-500.0,0.000107,2]
[408770293,1774211432284,-260.0,0.000107,2]
[408770294,1774211432294,-234.39453643,0.0001075,2]
[408770295,1774211432304,-1034.02987452,0.000108,2]
[408770296,1774211432314,-2863.16,0.00011507,2]
[408770297,1774211432324,-250.0,0.0001177,2]
[408770298,1774211432334,-232.0,0.00011868,3]
[408770299,1774211432343,-356.24,0.0001247,2]
[408770300,1774211432353,-281.35,0.00012476,2]
[408770302,1774211432363,-155.07,0.00012604,2]
[408770305,1774211432372,-787.10595,0.000127,2]
[408770309,1774211432382,-1100.0,0.000127,4]
[408770312,1774211432396,-1200.0,0.00012772,2]
[408770315,1774211432405,-300.0,0.00012772,2]
[408770318,1774211432415,-2850.76,0.00012773,2]
[408770321,1774211432425,-2300.0,0.000128,4]
[408770326,1774211432435,-3500.0,0.000129,4]
[408770327,1774211432445,-1282.0,0.00012966,2]
[408770329,1774211432455,-250.0,0.00013,2]
[408770331,1774211432465,-5642.82862896,0.00013,2]
[408770332,1774211432475,-150.0,0.00013023,2]
[408770333,1774211432485,-57138.1704,0.00013024,2]
[408770334,1774211432495,-3171.13653461,0.0001305,2]
[408770335,1774211432505,-232.0,0.00013053,3]
[408770336,1774211432515,-500.0,0.00013125,2]
[408770337,1774211432524,-500.0,0.00013125,2]
[408770338,1774211432534,-500.0,0.00013125,2]
[408770339,1774211432544,-500.0,0.00013125,2]
[408770340,1774211432554,-500.0,0.00013125,2]
[408770341,1774211432564,-500.0,0.00013125,2]
[408770342,1774211432573,-500.0,0.00013125,2]
[408770343,1774211432586,-500.0,0.00013125,2]
[408770344,1774211432596,-500.0,0.00013125,2]
[408770345,1774211432605,-500.0,0.00013125,2]
[408770346,1774211432616,-153.65437975,0.00013125,2]
[408770347,1774211432626,-430.0,0.00013163,2]
[408770348,1774211432635,-430.0,0.00013163,2]
[408770349,1774211432645,-430.0,0.00013163,2]
[408770350,1774211432655,-430.0,0.00013163,2]
[408770351,1774211432665,-430.0,0.00013163,2]
[408770352,1774211432674,-430.0,0.00013163,2]
[408770353,1774211432684,-430.0,0.00013163,2]
[408770354,1774211432694,-430.0,0.00013163,2]
[408770355,1774211432704,-430.0,0.00013163,2]
[408770356,1774211432714,-430.0,0.00013163,2]
[408770357,1774211432724,-430.0,0.00013163,2]
[408770358,1774211432734,-430.0,0.00013163,2]
[408770359,1774211432744,-430.0,0.00013163,2]
[408770360,1774211432754,-430.0,0.00013163,2]
[408770361,1774211432765,-430.0,0.00013163,2]
[408770362,1774211432778,-430.0,0.00013163,2]
[408770363,1774211432788,-430.0,0.00013163,2]
[408770364,1774211432798,-430.0,0.00013163,2]
[408770365,1774211432808,-430.0,0.00013163,2]
[408770366,1774211432818,-430.0,0.00013163,2]
[408770367,1774211432828,-430.0,0.00013163,2]
[408770368,1774211432838,-430.0,0.00013163,2]
[408770369,1774211432848,-430.0,0.00013163,2]
[408770370,1774211432859,-437.98644877,0.00013163,2]
[408770371,1774211432869,-500.0,0.00013163,2]
[408770372,1774211432880,-500.0,0.00013163,2]
[408770373,1774211432898,-500.0,0.00013163,2]
[408770374,1774211432909,-500.0,0.00013163,2]
[408770375,1774211432918,-500.0,0.00013163,2]
[408770376,1774211432928,-500.0,0.00013163,2]
[408770377,1774211432938,-556.71503579,0.00013163,2]
[408770378,1774211432947,-500.0,0.00013163,2]
[408770379,1774211432957,-8133.49057599,0.00013215,2]
[408770380,1774211432967,-10168.81858591,0.00013215,2]
[408770381,1774211432977,-11504.49726515,0.00013215,2]
[408770382,1774211432990,-150.0,0.00013272,2]
[408770383,1774211433002,-500.0,0.00013272,2]
[408770384,1774211433012,-187.1085871,0.00013272,2]
[408770385,1774211433024,-481.95659855,0.00013272,2]
[408770386,1774211433034,-500.0,0.00013272,2]
[408770387,1774211433044,-500.0,0.00013272,2]
[408770388,1774211433054,-500.0,0.00013272,2]
[408770389,1774211433065,-500.0,0.00013272,2]
[408770390,1774211433074,-575.31427102,0.00013272,2]
[408770391,1774211433084,-500.0,0.00013272,2]
[408770392,1774211433094,-500.0,0.00013272,2]
[408770393,1774211433103,-500.0,0.00013272,2]
[408770394,1774211433114,-500.0,0.00013272,2]
[408770395,1774211433125,-429.47533316,0.00013272,2]
[408770396,1774211433135,-500.0,0.00013272,2]
[408770397,1774211433145,-500.0,0.00013272,2]
[408770398,1774211433155,-500.0,0.00013272,2]
[408770399,1774211433164,-500.0,0.00013272,2]
[408770400,1774211433174,-500.0,0.00013272,2]
[408770401,1774211433183,-500.0,0.00013273,2]
[408770402,1774211433193,-500.0,0.00013273,2]
[408770403,1774211433204,-500.0,0.00013273,2]
[408770404,1774211433214,-500.56411595,0.00013273,2]
[408770405,1774211433224,-500.0,0.00013273,2]
[408770406,1774211433234,-500.0,0.00013273,2]
[408770407,1774211433243,-500.0,0.00013273,2]
[408770408,1774211433253,-500.0,0.00013273,2]
[408770409,1774211433263,-82472.20770399,0.00013273,2]
[408770410,1774211433277,-724.41226592,0.00013273,2]
[408770411,1774211433313,-498.60816711,0.00013273,2]
[408770412,1774211433329,-482.5225775,0.00013273,2]
[408770413,1774211433344,-1143.12050116,0.00013273,2]
[408770414,1774211433356,-3237.39453643,0.00013273,2]
[408770420,1774211438220,-670.10000021,0.00013173,2]
[408770421,1774211438232,-1829.89999979,0.00013173,2]
[408770422,1774211438243,-336.17533319,0.00013271,2]
[408770423,1774211438252,-194.77225875,0.00013271,2]
[408770424,1774211438329,-143.15445762,0.00013271,2]
[408770425,1774211438338,-265.68221303,0.00013271,2]
[408770426,1774211438347,-278.30424113,0.00013271,2]
[408770427,1774211438356,-500.0,0.00013271,2]
[408770428,1774211438366,-500.0,0.00013271,2]
[408770429,1774211438380,-219.16938733,0.00013271,2]
[408770430,1774211438395,-629.60628014,0.00013271,2]
[408770431,1774211438404,-483.53722891,0.00013271,2]
[408770432,1774211438413,-500.0,0.00013271,2]
[408770433,1774211438422,-848.77566747,0.00013271,2]
[408770434,1774211438432,-500.0,0.00013271,2]
[408770435,1774211438441,-500.0,0.00013271,2]
[408770436,1774211438450,-500.0,0.00013271,2]
[408770437,1774211438459,-500.0,0.00013271,2]
[408770438,1774211438469,-848.77566747,0.00013271,2]
[408770439,1774211438478,-83.21528229,0.00013271,2]
[408770451,1774211442176,-765.56038518,0.00013271,2]
[408770452,1774211442186,-226.83305367,0.00013271,2]
[408770453,1774211442195,-500.0,0.00013271,2]
[408770454,1774211442204,-90.63856107,0.00013271,2]
[408770475,1774211443455,-758.1371064,0.00013271,2]
[408770476,1774211443465,-27.68030493,0.00013271,2]
[408770477,1774211443510,-410.32677016,0.00013271,2]
[408770478,1774211443566,-410.76859238,0.00013271,2]
[408770479,1774211443576,-189.92483308,0.00013271,2]
[408770490,1774211446300,-428.14408761,0.00013271,2]
[408770491,1774211446312,-688.74783486,0.00013271,2]
[408770492,1774211446356,-160.02783261,0.00013271,2]
[408770493,1774211446365,-848.77566747,0.00013271,2]
[408770494,1774211446374,-848.77566747,0.00013271,2]
[408770495,1774211446384,-412.45083245,0.00013271,2]
[408770502,1774211446513,-436.32483502,0.00013271,2]
[408770504,1774211446523,-848.77566747,0.00013271,2]
[408770506,1774211446532,-848.77566747,0.00013271,2]
[408770508,1774211446541,-848.77566747,0.00013271,2]
[408770510,1774211446549,-848.77566747,0.00013271,2]
[408770512,1774211446559,-848.77566747,0.00013271,2]
[408770514,1774211446568,-848.77566747,0.00013271,2]
[408770516,1774211446577,-817.11144279,0.00013271,2]
[408770548,1774212631303,-500.0,0.000107,2]
[408770549,1774212631313,-250.0,0.0001177,2]
[408770550,1774212631323,-150.0,0.00012071,2]
[408770551,1774212631333,-224.40952753,0.0001213,2]
[408770552,1774212631342,-1500.0,0.00012196,2]
[408770553,1774212631352,-200.0,0.0001223,2]
[408770554,1774212631361,-1342.73907066,0.00012265,2]
[408770555,1774212631381,-315.42809693,0.00012265,2]
[408770556,1774212631392,-194.25283241,0.00012265,2]
[408770557,1774212631409,-600.06716759,0.00012288,2]
[408770558,1774212631420,-1399.93283241,0.00012288,2]
[408770559,1774212631430,-224.40952751,0.00012477,2]
[408770560,1774212631439,-1379.65764008,0.000127,2]
[408770561,1774212631459,-636.13445616,0.000127,2]
[408770562,1774212631475,-337.20790376,0.000127,2]
[408770563,1774212631483,-362.36399931,0.000128,4]
[408770577,1774212637689,-537.63600069,0.000128,4]
[408770579,1774212637699,-224.40952751,0.00012823,2]
[408770581,1774212637708,-1200.0,0.00012823,2]
[408770583,1774212637718,-1810.7528,0.00012823,2]
[408770584,1774212637726,-8897.71626261,0.00012824,2]
[408770586,1774212637736,-10354.04753859,0.00012824,2]